[Event "*** Titled Tuesday Blitz"]
[Site "Chess.com"]
[Date "2020.12.01"]
[Round "10"]
[White "esskeettit"]
[Black "GMSrinath"]
[Result "0-1"]
[WhiteElo "2456"]
[BlackElo "2780"]
[TimeControl "180+1"]
[EndTime "11:56:29 PST"]
[Termination "GMSrinath won on time"]

1. d4 {[%clk 0:03:00.9]} 1... Nf6 {[%clk 0:02:58.7]} 2. c4 {[%clk 0:02:53.6]}
2... e6 {[%clk 0:02:58.6]} 3. Nc3 {[%clk 0:02:53.1]} 3... Bb4 {[%clk 0:02:58]}
4. e3 {[%clk 0:02:52.4]} 4... O-O {[%clk 0:02:57.3]} 5. Bd3 {[%clk 0:02:52.5]}
5... d5 {[%clk 0:02:57.1]} 6. Ne2 {[%clk 0:02:51.4]} 6... b6 {[%clk 0:02:55.5]}
7. cxd5 {[%clk 0:02:51.3]} 7... exd5 {[%clk 0:02:55.3]} 8. O-O {[%clk
0:02:51.1]} 8... Re8 {[%clk 0:02:54.9]} 9. a3 {[%clk 0:02:51]} 9... Bd6 {[%clk
0:02:54.6]} 10. Ng3 {[%clk 0:02:50.5]} 10... c5 {[%clk 0:02:50.9]} 11. Re1
{[%clk 0:02:43.8]} 11... Nc6 {[%clk 0:02:49.5]} 12. Bb5 {[%clk 0:02:23.8]} 12...
Bd7 {[%clk 0:02:42.5]} 13. dxc5 {[%clk 0:02:23.7]} 13... Bxc5 {[%clk 0:02:43.1]}
14. Nxd5 {[%clk 0:02:18.4]} 14... Nxd5 {[%clk 0:02:42.6]} 15. Qxd5 {[%clk
0:02:16.6]} 15... Qc7 {[%clk 0:02:42.4]} 16. b4 {[%clk 0:02:08.2]} 16... Bf8
{[%clk 0:02:32.8]} 17. Bb2 {[%clk 0:02:00.6]} 17... a6 {[%clk 0:02:25]} 18. Bd3
{[%clk 0:01:40]} 18... Be6 {[%clk 0:02:07.4]} 19. Qe4 {[%clk 0:01:30.3]} 19...
g6 {[%clk 0:02:06.4]} 20. Rac1 {[%clk 0:01:21.7]} 20... Bd7 {[%clk 0:02:04.3]}
21. Qc4 {[%clk 0:01:12.9]} 21... Qd6 {[%clk 0:01:50.5]} 22. Be4 {[%clk
0:01:06.4]} 22... Rac8 {[%clk 0:01:44.9]} 23. Red1 {[%clk 0:01:03.9]} 23... Ne5
{[%clk 0:01:35.6]} 24. Rxd6 {[%clk 0:00:48.5]} 24... Rxc4 {[%clk 0:01:21.6]} 25.
Rxc4 {[%clk 0:00:26.7]} 25... Bxd6 {[%clk 0:01:21.5]} 26. Rd4 {[%clk 0:00:23.3]}
26... Bc7 {[%clk 0:01:18.9]} 27. f4 {[%clk 0:00:21.8]} 27... Bb5 {[%clk
0:01:07.6]} 28. fxe5 {[%clk 0:00:19.3]} 28... Bxe5 {[%clk 0:01:08.5]} 29. Rd2
{[%clk 0:00:19.5]} 29... Bxg3 {[%clk 0:01:08.7]} 30. hxg3 {[%clk 0:00:13.3]}
30... Rxe4 {[%clk 0:01:09.1]} 31. Rd8+ {[%clk 0:00:13.3]} 31... Be8 {[%clk
0:01:09.6]} 32. Bd4 {[%clk 0:00:13.3]} 32... Re6 {[%clk 0:01:09.1]} 33. Bxb6
{[%clk 0:00:12]} 33... f6 {[%clk 0:01:05.1]} 34. Bd4 {[%clk 0:00:12]} 34... Kf7
{[%clk 0:01:05.3]} 35. Kf2 {[%clk 0:00:12]} 35... Rc6 {[%clk 0:01:04]} 36. Rb8
{[%clk 0:00:11.9]} 36... Rc2+ {[%clk 0:01:04.1]} 37. Kf3 {[%clk 0:00:11.6]}
37... Bc6+ {[%clk 0:01:04.5]} 38. e4 {[%clk 0:00:12]} 38... f5 {[%clk 0:01:05]}
39. Rb6 {[%clk 0:00:11.3]} 39... Bxe4+ {[%clk 0:01:04.3]} 40. Ke3 {[%clk
0:00:11.6]} 40... Rxg2 {[%clk 0:01:03.7]} 41. Rxa6 {[%clk 0:00:11.5]} 41...
Rxg3+ {[%clk 0:01:03.7]} 42. Kf4 {[%clk 0:00:11.8]} 42... Rd3 {[%clk 0:00:58.2]}
43. Ra7+ {[%clk 0:00:10.7]} 43... Ke6 {[%clk 0:00:57.7]} 44. Ra6+ {[%clk
0:00:11.1]} 44... Kd5 {[%clk 0:00:57.5]} 45. Bc5 {[%clk 0:00:11.4]} 45... Rf3+
{[%clk 0:00:52.5]} 46. Kg5 {[%clk 0:00:11.1]} 46... Rg3+ {[%clk 0:00:53.4]} 47.
Kf6 {[%clk 0:00:11.4]} 47... f4 {[%clk 0:00:52.1]} 48. Rd6+ {[%clk 0:00:11.2]}
48... Kc4 {[%clk 0:00:51.2]} 49. Rd4+ {[%clk 0:00:11.9]} 49... Kb5 {[%clk
0:00:50.7]} 50. Rxe4 {[%clk 0:00:12.8]} 50... g5 {[%clk 0:00:49.9]} 51. Kf5
{[%clk 0:00:10.8]} 51... h5 {[%clk 0:00:46.1]} 52. Re5 {[%clk 0:00:10.3]} 52...
Ka4 {[%clk 0:00:43.9]} 53. Bd4 {[%clk 0:00:09.5]} 53... h4 {[%clk 0:00:43.9]}
54. b5 {[%clk 0:00:09.6]} 54... h3 {[%clk 0:00:42.6]} 55. b6 {[%clk 0:00:09.6]}
55... h2 {[%clk 0:00:42.5]} 56. Re1 {[%clk 0:00:09.8]} 56... Rb3 {[%clk
0:00:34.1]} 57. Rh1 {[%clk 0:00:08.4]} 57... Rb5+ {[%clk 0:00:30.5]} 58. Kg4
{[%clk 0:00:08]} 58... Kxa3 {[%clk 0:00:31]} 59. Rxh2 {[%clk 0:00:08.1]} 59...
Ka4 {[%clk 0:00:31.3]} 60. Rd2 {[%clk 0:00:07.4]} 60... Ka3 {[%clk 0:00:25.9]}
61. Kf3 {[%clk 0:00:06.5]} 61... Rb3+ {[%clk 0:00:24.8]} 62. Kg4 {[%clk
0:00:06.7]} 62... Rb5 {[%clk 0:00:24.4]} 63. Rd3+ {[%clk 0:00:06.4]} 63... Kb4
{[%clk 0:00:23.4]} 64. Rd2 {[%clk 0:00:06.5]} 64... Kc4 {[%clk 0:00:23.9]} 65.
Rb2 {[%clk 0:00:05.7]} 65... Rd5 {[%clk 0:00:15.4]} 66. b7 {[%clk 0:00:06]}
66... Rd8 {[%clk 0:00:15.9]} 67. b8=Q {[%clk 0:00:06.7]} 67... Rxb8 {[%clk
0:00:16.2]} 68. Rxb8 {[%clk 0:00:06]} 68... Kxd4 {[%clk 0:00:17.1]} 69. Rd8+
{[%clk 0:00:06.5]} 69... Ke3 {[%clk 0:00:17.5]} 70. Kxg5 {[%clk 0:00:06.9]}
70... f3 {[%clk 0:00:17.8]} 71. Re8+ {[%clk 0:00:07.7]} 71... Kd2 {[%clk
0:00:18.3]} 0-1

[Event "*** Titled Tuesday Blitz"]
[Site "Chess.com"]
[Date "2020.12.01"]
[Round "10"]
[White "tteshan"]
[Black "Michaelson_11"]
[Result "0-1"]
[WhiteElo "2349"]
[BlackElo "2189"]
[TimeControl "180+1"]
[EndTime "11:56:37 PST"]
[Termination "Michaelson_11 won by resignation"]

1. e4 {[%clk 0:03:00.5]} 1... c5 {[%clk 0:02:59.3]} 2. c3 {[%clk 0:02:59.9]}
2... Nf6 {[%clk 0:02:58.3]} 3. e5 {[%clk 0:02:58.4]} 3... Nd5 {[%clk 0:02:58.6]}
4. Bc4 {[%clk 0:02:57.7]} 4... Nb6 {[%clk 0:02:58.2]} 5. Bb3 {[%clk 0:02:58.3]}
5... Nc6 {[%clk 0:02:58.1]} 6. Nf3 {[%clk 0:02:57.7]} 6... c4 {[%clk 0:02:58.2]}
7. Bc2 {[%clk 0:02:57.9]} 7... d6 {[%clk 0:02:57.2]} 8. exd6 {[%clk 0:02:57.4]}
8... Qxd6 {[%clk 0:02:58.1]} 9. O-O {[%clk 0:02:57.7]} 9... Bg4 {[%clk
0:02:58.5]} 10. h3 {[%clk 0:02:56.4]} 10... Bh5 {[%clk 0:02:56.4]} 11. Re1
{[%clk 0:02:54.1]} 11... Qf6 {[%clk 0:02:47.2]} 12. Be4 {[%clk 0:02:51.6]} 12...
O-O-O {[%clk 0:02:43.6]} 13. a4 {[%clk 0:02:46.2]} 13... Ne5 {[%clk 0:02:29.5]}
14. a5 {[%clk 0:02:40.7]} 14... Nxf3+ {[%clk 0:02:22.5]} 15. Bxf3 {[%clk
0:02:38.9]} 15... Bxf3 {[%clk 0:02:20.9]} 16. Qxf3 {[%clk 0:02:38.7]} 16... Qxf3
{[%clk 0:02:20.3]} 17. gxf3 {[%clk 0:02:31.1]} 17... Nd5 {[%clk 0:02:20.7]} 18.
Re4 {[%clk 0:02:21.7]} 18... Rd6 {[%clk 0:02:18.6]} 19. Rxc4+ {[%clk 0:02:19.8]}
19... Kd7 {[%clk 0:02:18.9]} 20. d4 {[%clk 0:02:16.5]} 20... Rg6+ {[%clk
0:02:09.9]} 21. Kf1 {[%clk 0:02:14.8]} 21... e6 {[%clk 0:02:09.5]} 22. Na3
{[%clk 0:01:39.4]} 22... a6 {[%clk 0:01:59.8]} 23. Nc2 {[%clk 0:01:35.3]} 23...
Bd6 {[%clk 0:01:56.9]} 24. Ne3 {[%clk 0:01:28.3]} 24... Nf4 {[%clk 0:01:56]} 25.
h4 {[%clk 0:01:22.4]} 25... Rh6 {[%clk 0:01:18.4]} 26. Ng2 {[%clk 0:01:17.3]}
26... g5 {[%clk 0:01:17.8]} 27. Bxf4 {[%clk 0:01:07.8]} 27... Bxf4 {[%clk
0:01:13.3]} 28. Rd1 {[%clk 0:00:56.8]} 28... Kd6 {[%clk 0:00:57.8]} 29. d5
{[%clk 0:00:49.6]} 29... e5 {[%clk 0:00:48.7]} 30. hxg5 {[%clk 0:00:31.1]} 30...
Bxg5 {[%clk 0:00:48.4]} 31. Ke2 {[%clk 0:00:28.9]} 31... Rh2 {[%clk 0:00:37.7]}
32. Ne3 {[%clk 0:00:21.2]} 32... Bxe3 {[%clk 0:00:36.7]} 33. Kxe3 {[%clk
0:00:22.1]} 33... f5 {[%clk 0:00:36.8]} 34. Rb4 {[%clk 0:00:19]} 34... f4+
{[%clk 0:00:27.6]} 35. Ke4 {[%clk 0:00:18.8]} 35... Rxf2 {[%clk 0:00:26.5]} 36.
Rxb7 {[%clk 0:00:16.5]} 36... Re2+ {[%clk 0:00:22.7]} 37. Kf5 {[%clk 0:00:15.7]}
37... Rf8+ {[%clk 0:00:22.8]} 38. Kg5 {[%clk 0:00:13.7]} 38... Rg2+ {[%clk
0:00:21.4]} 39. Kh6 {[%clk 0:00:13.5]} 39... Rfg8 {[%clk 0:00:18.7]} 40. Rb6+
{[%clk 0:00:07.4]} 40... Kc5 {[%clk 0:00:16]} 41. Rh1 {[%clk 0:00:02.9]} 41...
R8g6+ {[%clk 0:00:05.3]} 42. Rxg6 {[%clk 0:00:02.9]} 42... hxg6 {[%clk
0:00:05.7]} 43. Rd1 {[%clk 0:00:02.4]} 43... Kd6 {[%clk 0:00:05]} 44. Kg7 {[%clk
0:00:02.2]} 44... Rxb2 {[%clk 0:00:04.8]} 45. Kf6 {[%clk 0:00:02.6]} 45... Rc2
{[%clk 0:00:04.7]} 46. Kxg6 {[%clk 0:00:02.8]} 46... Rxc3 {[%clk 0:00:04.9]} 47.
Kf5 {[%clk 0:00:03.4]} 47... Rxf3 {[%clk 0:00:05]} 48. Ke4 {[%clk 0:00:03.6]}
48... Re3+ {[%clk 0:00:05.2]} 49. Kf5 {[%clk 0:00:03.9]} 49... Ra3 {[%clk
0:00:05.3]} 50. Rb1 {[%clk 0:00:04]} 50... Rxa5 {[%clk 0:00:05.4]} 51. Rb6+
{[%clk 0:00:02.8]} 51... Kxd5 {[%clk 0:00:05.5]} 52. Re6 {[%clk 0:00:03.2]}
52... Kd4 {[%clk 0:00:05.4]} 53. Rd6+ {[%clk 0:00:02.8]} 53... Rd5 {[%clk
0:00:04.7]} 54. Rxa6 {[%clk 0:00:02.7]} 54... f3 {[%clk 0:00:05.1]} 55. Ra3
{[%clk 0:00:02.1]} 55... e4+ {[%clk 0:00:04.9]} 56. Kf4 {[%clk 0:00:02.1]} 56...
Rd8 {[%clk 0:00:04.6]} 57. Kg3 {[%clk 0:00:02.1]} 57... Rf8 {[%clk 0:00:03.8]}
58. Kf2 {[%clk 0:00:02.4]} 58... e3+ {[%clk 0:00:03.9]} 59. Rxe3 {[%clk
0:00:02.5]} 59... Rf7 {[%clk 0:00:04.3]} 60. Rxf3 {[%clk 0:00:02.6]} 60... Re7
{[%clk 0:00:04.2]} 61. Rf4+ {[%clk 0:00:02.3]} 61... Kd3 {[%clk 0:00:04.6]} 62.
Rf3+ {[%clk 0:00:02.5]} 62... Kc2 {[%clk 0:00:04.5]} 63. Re3 {[%clk 0:00:02.3]}
63... Rd7 {[%clk 0:00:04.3]} 64. Re2+ {[%clk 0:00:02.2]} 64... Kc1 {[%clk
0:00:04.5]} 65. Ke3 {[%clk 0:00:02.3]} 65... Re7+ {[%clk 0:00:03.5]} 66. Kd3
{[%clk 0:00:02.8]} 66... Rd7+ {[%clk 0:00:03.8]} 67. Ke3 {[%clk 0:00:02.6]}
67... Kd1 {[%clk 0:00:04.2]} 68. Kf2 {[%clk 0:00:02.8]} 68... Rf7+ {[%clk
0:00:04.3]} 69. Kg2 {[%clk 0:00:02]} 69... Kxe2 {[%clk 0:00:03.7]} 70. Kh3
{[%clk 0:00:02.3]} 70... Kf3 {[%clk 0:00:03.7]} 0-1

[Event "*** Titled Tuesday Blitz"]
[Site "Chess.com"]
[Date "2020.12.01"]
[Round "10"]
[White "awesomevishesh"]
[Black "CalinGheorghiu"]
[Result "0-1"]
[WhiteElo "2539"]
[BlackElo "2417"]
[TimeControl "180+1"]
[EndTime "11:57:04 PST"]
[Termination "CalinGheorghiu won by resignation"]

1. e4 {[%clk 0:03:00.9]} 1... c5 {[%clk 0:02:48.3]} 2. Nf3 {[%clk 0:02:59.9]}
2... d6 {[%clk 0:02:48.7]} 3. d4 {[%clk 0:02:58.6]} 3... cxd4 {[%clk 0:02:49.6]}
4. Nxd4 {[%clk 0:02:59.2]} 4... Nf6 {[%clk 0:02:50.2]} 5. Nc3 {[%clk 0:02:59.8]}
5... a6 {[%clk 0:02:50.1]} 6. g3 {[%clk 0:02:58.5]} 6... e5 {[%clk 0:02:47.9]}
7. Nde2 {[%clk 0:02:57.9]} 7... Be7 {[%clk 0:02:48.6]} 8. Bg2 {[%clk 0:02:57.9]}
8... O-O {[%clk 0:02:49.5]} 9. O-O {[%clk 0:02:57.6]} 9... Nc6 {[%clk
0:02:50.4]} 10. h3 {[%clk 0:02:56]} 10... b5 {[%clk 0:02:50.2]} 11. Be3 {[%clk
0:02:53.2]} 11... Bb7 {[%clk 0:02:47.1]} 12. Nd5 {[%clk 0:02:52]} 12... Nxd5
{[%clk 0:02:42.7]} 13. exd5 {[%clk 0:02:52]} 13... Nb8 {[%clk 0:02:41.3]} 14. a4
{[%clk 0:02:46.9]} 14... bxa4 {[%clk 0:02:38.8]} 15. Rxa4 {[%clk 0:02:45.6]}
15... Nd7 {[%clk 0:02:39.2]} 16. c4 {[%clk 0:02:17.7]} 16... Qc7 {[%clk
0:02:26.5]} 17. Qd2 {[%clk 0:01:36.5]} 17... f5 {[%clk 0:02:02.5]} 18. Rc1
{[%clk 0:01:33.8]} 18... Bf6 {[%clk 0:01:52.3]} 19. b4 {[%clk 0:01:32.7]} 19...
a5 {[%clk 0:01:19.6]} 20. c5 {[%clk 0:01:29.9]} 20... axb4 {[%clk 0:01:19.8]}
21. Rxb4 {[%clk 0:01:19.1]} 21... Ba6 {[%clk 0:01:07.1]} 22. cxd6 {[%clk
0:00:52]} 22... Qxd6 {[%clk 0:01:01.1]} 23. Rc6 {[%clk 0:00:51.6]} 23... Qe7
{[%clk 0:00:55.9]} 24. d6 {[%clk 0:00:51.6]} 24... Qe8 {[%clk 0:00:54.8]} 25.
Qa2+ {[%clk 0:00:46.9]} 25... Kh8 {[%clk 0:00:50.6]} 26. Rxa6 {[%clk 0:00:46.7]}
26... Rxa6 {[%clk 0:00:41.3]} 27. Qxa6 {[%clk 0:00:47.2]} 27... e4 {[%clk
0:00:42]} 28. Qa4 {[%clk 0:00:33.2]} 28... Qf7 {[%clk 0:00:39]} 29. Rb7 {[%clk
0:00:31.7]} 29... Rd8 {[%clk 0:00:39.9]} 30. Bd4 {[%clk 0:00:23.7]} 30... Qe6
{[%clk 0:00:33.8]} 31. Bxf6 {[%clk 0:00:23]} 31... Nxf6 {[%clk 0:00:34.7]} 32.
Nf4 {[%clk 0:00:19.2]} 32... Qxd6 {[%clk 0:00:33.1]} 33. Qb3 {[%clk 0:00:18]}
33... Rg8 {[%clk 0:00:20.3]} 34. Bf1 {[%clk 0:00:16]} 34... Qc5 {[%clk
0:00:15.6]} 35. Rb5 {[%clk 0:00:14.5]} 35... Qa7 {[%clk 0:00:15]} 36. Rb7 {[%clk
0:00:14.2]} 36... Qc5 {[%clk 0:00:14.8]} 37. Ne6 {[%clk 0:00:14.5]} 37... Qe5
{[%clk 0:00:14]} 38. Bc4 {[%clk 0:00:09.7]} 38... e3 {[%clk 0:00:11.6]} 39. Qxe3
{[%clk 0:00:07.6]} 39... Ne4 {[%clk 0:00:11.7]} 40. Ng5 {[%clk 0:00:05.3]} 40...
Rf8 {[%clk 0:00:07.5]} 41. Nf7+ {[%clk 0:00:04.7]} 41... Rxf7 {[%clk 0:00:07.7]}
42. Rxf7 {[%clk 0:00:05.3]} 42... h6 {[%clk 0:00:07.8]} 43. Rf8+ {[%clk
0:00:05.4]} 43... Kh7 {[%clk 0:00:08.2]} 44. Rf7 {[%clk 0:00:04.9]} 44... Qa1+
{[%clk 0:00:05.4]} 45. Kg2 {[%clk 0:00:04.5]} 45... Qd1 {[%clk 0:00:05.8]} 46.
Qf3 {[%clk 0:00:04.1]} 46... Qxf3+ {[%clk 0:00:03.2]} 47. Kxf3 {[%clk
0:00:04.4]} 47... Nd2+ {[%clk 0:00:03.8]} 48. Ke2 {[%clk 0:00:03.8]} 48... Nxc4
{[%clk 0:00:04.2]} 49. Rxf5 {[%clk 0:00:04.4]} 49... Nd6 {[%clk 0:00:04.6]} 50.
Rc5 {[%clk 0:00:04.5]} 50... Nf7 {[%clk 0:00:03.9]} 51. Rd5 {[%clk 0:00:04.8]}
51... Kg6 {[%clk 0:00:04.1]} 52. h4 {[%clk 0:00:05.1]} 52... Kf6 {[%clk
0:00:04.4]} 53. h5 {[%clk 0:00:05.5]} 53... Ke6 {[%clk 0:00:04.7]} 54. Ra5
{[%clk 0:00:05.7]} 54... Ng5 {[%clk 0:00:04.9]} 55. f4 {[%clk 0:00:05.7]} 55...
Nf7 {[%clk 0:00:04.5]} 56. Kf3 {[%clk 0:00:06]} 56... Nd6 {[%clk 0:00:05]} 57.
g4 {[%clk 0:00:05.9]} 57... Ke7 {[%clk 0:00:05.3]} 58. Ra6 {[%clk 0:00:06]}
58... Nc4 {[%clk 0:00:04.6]} 59. Ke4 {[%clk 0:00:05.9]} 59... Nd6+ {[%clk
0:00:04.1]} 60. Kd5 {[%clk 0:00:06]} 60... Ne8 {[%clk 0:00:04]} 61. Ra7+ {[%clk
0:00:06.3]} 61... Kf6 {[%clk 0:00:04.3]} 62. Ra6+ {[%clk 0:00:06.4]} 62... Kf7
{[%clk 0:00:04.5]} 63. Ke5 {[%clk 0:00:06.7]} 63... Nf6 {[%clk 0:00:04.5]} 64.
Ra7+ {[%clk 0:00:07.2]} 64... Kg8 {[%clk 0:00:04.6]} 65. Kf5 {[%clk 0:00:07.3]}
65... Kh7 {[%clk 0:00:04.4]} 66. g5 {[%clk 0:00:06.5]} 66... hxg5 {[%clk
0:00:04.5]} 67. Kxg5 {[%clk 0:00:04.5]} 67... Ne4+ {[%clk 0:00:04.7]} 68. Kh4
{[%clk 0:00:03.8]} 68... Nf6 {[%clk 0:00:05]} 69. f5 {[%clk 0:00:03.4]} 69...
Kh6 {[%clk 0:00:05.1]} 70. Ra6 {[%clk 0:00:03.6]} 70... Kh7 {[%clk 0:00:05.4]}
71. Re6 {[%clk 0:00:03]} 71... Kh6 {[%clk 0:00:05.4]} 72. Rd6 {[%clk 0:00:03.4]}
72... Kh7 {[%clk 0:00:05.6]} 73. Kg5 {[%clk 0:00:03.9]} 73... Ne4+ {[%clk
0:00:04.7]} 74. Kf4 {[%clk 0:00:04]} 74... Nxd6 {[%clk 0:00:05.1]} 75. Ke5
{[%clk 0:00:04]} 75... Ne8 {[%clk 0:00:05.7]} 76. Ke6 {[%clk 0:00:04.4]} 76...
Nf6 {[%clk 0:00:06.3]} 77. Kf7 {[%clk 0:00:04.4]} 77... Nxh5 {[%clk 0:00:06.3]}
78. Ke6 {[%clk 0:00:04.9]} 78... Nf6 {[%clk 0:00:06.8]} 79. Kf7 {[%clk
0:00:05.2]} 79... Kh6 {[%clk 0:00:07.3]} 80. Kf8 {[%clk 0:00:05.6]} 80... Nh5
{[%clk 0:00:07.4]} 81. Kf7 {[%clk 0:00:05.7]} 81... Kg5 {[%clk 0:00:07.9]} 82.
Kg8 {[%clk 0:00:05.6]} 82... Kxf5 {[%clk 0:00:07.6]} 83. Kh7 {[%clk 0:00:06.3]}
83... g5 {[%clk 0:00:08.1]} 84. Kg8 {[%clk 0:00:07.1]} 84... g4 {[%clk
0:00:08.4]} 85. Kh7 {[%clk 0:00:08]} 85... g3 {[%clk 0:00:09]} 0-1

[Event "*** Titled Tuesday Blitz"]
[Site "Chess.com"]
[Date "2020.12.01"]
[Round "10"]
[White "Forantes"]
[Black "NMZanette"]
[Result "1-0"]
[WhiteElo "2393"]
[BlackElo "2264"]
[TimeControl "180+1"]
[EndTime "11:57:08 PST"]
[Termination "Forantes won by checkmate"]

1. e4 {[%clk 0:03:00.9]} 1... e5 {[%clk 0:02:57.3]} 2. Nf3 {[%clk 0:03:00]} 2...
Nc6 {[%clk 0:02:56.1]} 3. d4 {[%clk 0:02:59.7]} 3... exd4 {[%clk 0:02:56.2]} 4.
Nxd4 {[%clk 0:03:00.6]} 4... Nf6 {[%clk 0:02:56.4]} 5. Nc3 {[%clk 0:02:59.4]}
5... Bb4 {[%clk 0:02:55.3]} 6. Nxc6 {[%clk 0:02:59.5]} 6... bxc6 {[%clk
0:02:54.9]} 7. Bd3 {[%clk 0:02:59.3]} 7... d5 {[%clk 0:02:53.6]} 8. exd5 {[%clk
0:02:57.7]} 8... cxd5 {[%clk 0:02:54.5]} 9. O-O {[%clk 0:02:57.1]} 9... O-O
{[%clk 0:02:52.6]} 10. Qf3 {[%clk 0:02:55.8]} 10... Be7 {[%clk 0:02:48.5]} 11.
h3 {[%clk 0:02:55.7]} 11... Be6 {[%clk 0:02:47.9]} 12. Bg5 {[%clk 0:02:54.9]}
12... h6 {[%clk 0:02:42.5]} 13. Bh4 {[%clk 0:02:54.4]} 13... Rb8 {[%clk
0:02:37.4]} 14. Rab1 {[%clk 0:02:53.5]} 14... c5 {[%clk 0:02:32.7]} 15. b3
{[%clk 0:02:32.9]} 15... Rb4 {[%clk 0:02:27.1]} 16. Bg3 {[%clk 0:02:31.1]} 16...
Qd7 {[%clk 0:02:19.9]} 17. Rfe1 {[%clk 0:02:24.4]} 17... Rd8 {[%clk 0:01:54.4]}
18. Rbd1 {[%clk 0:02:14.4]} 18... Qc8 {[%clk 0:01:34.6]} 19. a3 {[%clk
0:01:38.8]} 19... Rb6 {[%clk 0:01:29.4]} 20. Na4 {[%clk 0:01:05.3]} 20... Rc6
{[%clk 0:00:46.5]} 21. Bb5 {[%clk 0:01:04.1]} 21... Re8 {[%clk 0:00:41.3]} 22.
Bxc6 {[%clk 0:01:03.3]} 22... Qxc6 {[%clk 0:00:40.9]} 23. Nc3 {[%clk 0:01:00.9]}
23... Rd8 {[%clk 0:00:34.7]} 24. Ne2 {[%clk 0:00:53.8]} 24... Qa6 {[%clk
0:00:34.3]} 25. a4 {[%clk 0:00:53]} 25... d4 {[%clk 0:00:34.6]} 26. Nf4 {[%clk
0:00:52.2]} 26... Re8 {[%clk 0:00:29.8]} 27. Nxe6 {[%clk 0:00:47.1]} 27... fxe6
{[%clk 0:00:30.7]} 28. Be5 {[%clk 0:00:42.7]} 28... Nd5 {[%clk 0:00:27]} 29. Qg3
{[%clk 0:00:38.4]} 29... Bf8 {[%clk 0:00:26.7]} 30. Rd3 {[%clk 0:00:36.9]} 30...
Qa5 {[%clk 0:00:23.2]} 31. Red1 {[%clk 0:00:32.9]} 31... Nc3 {[%clk 0:00:20.1]}
32. Rxc3 {[%clk 0:00:14.7]} 32... Qxc3 {[%clk 0:00:19.6]} 33. Rd3 {[%clk
0:00:15.6]} 33... Qe1+ {[%clk 0:00:18.5]} 34. Kh2 {[%clk 0:00:15.2]} 34... Qe2
{[%clk 0:00:18.8]} 35. Rf3 {[%clk 0:00:15.3]} 35... Re7 {[%clk 0:00:16.8]} 36.
Bd6 {[%clk 0:00:13.2]} 36... Rf7 {[%clk 0:00:16.3]} 37. Rxf7 {[%clk 0:00:04.3]}
37... Kxf7 {[%clk 0:00:16.3]} 38. Qf4+ {[%clk 0:00:04.5]} 38... Kg8 {[%clk
0:00:16]} 39. Qxf8+ {[%clk 0:00:04.6]} 39... Kh7 {[%clk 0:00:16.3]} 40. Qf4
{[%clk 0:00:05.5]} 40... Qxc2 {[%clk 0:00:15.8]} 41. Be5 {[%clk 0:00:05.4]}
41... Qg6 {[%clk 0:00:15.7]} 42. Bd6 {[%clk 0:00:05.5]} 42... d3 {[%clk
0:00:15.7]} 43. Bxc5 {[%clk 0:00:05.6]} 43... e5 {[%clk 0:00:13.9]} 44. Qd2
{[%clk 0:00:04.5]} 44... Qe4 {[%clk 0:00:12.6]} 45. Be3 {[%clk 0:00:04.5]} 45...
Qd5 {[%clk 0:00:12.4]} 46. b4 {[%clk 0:00:04.2]} 46... Qb3 {[%clk 0:00:12.7]}
47. a5 {[%clk 0:00:03.9]} 47... e4 {[%clk 0:00:13.2]} 48. Bxa7 {[%clk
0:00:03.9]} 48... g5 {[%clk 0:00:12.7]} 49. Be3 {[%clk 0:00:04.3]} 49... Qa4
{[%clk 0:00:12.2]} 50. Qc3 {[%clk 0:00:02.4]} 50... Qd7 {[%clk 0:00:12.2]} 51.
Qc5 {[%clk 0:00:02.4]} 51... Qf7 {[%clk 0:00:12]} 52. Qe5 {[%clk 0:00:02.4]}
52... Qb7 {[%clk 0:00:11]} 53. Qxe4+ {[%clk 0:00:02.8]} 53... Qxe4 {[%clk
0:00:10.7]} 54. a6 {[%clk 0:00:03.4]} 54... Qe5+ {[%clk 0:00:10.3]} 55. g3
{[%clk 0:00:04.3]} 55... Qe8 {[%clk 0:00:06]} 56. a7 {[%clk 0:00:05.2]} 56... d2
{[%clk 0:00:06.6]} 57. Bxd2 {[%clk 0:00:05.3]} 57... Qb5 {[%clk 0:00:05.2]} 58.
Be3 {[%clk 0:00:06.2]} 58... Qb7 {[%clk 0:00:05.5]} 59. b5 {[%clk 0:00:06.2]}
59... Kg6 {[%clk 0:00:05.9]} 60. b6 {[%clk 0:00:06.7]} 60... h5 {[%clk
0:00:06.5]} 61. g4 {[%clk 0:00:06.9]} 61... hxg4 {[%clk 0:00:05.9]} 62. hxg4
{[%clk 0:00:07.8]} 62... Kf6 {[%clk 0:00:06.2]} 63. Kg3 {[%clk 0:00:08.4]} 63...
Ke5 {[%clk 0:00:06.3]} 64. f4+ {[%clk 0:00:07.9]} 64... Ke4 {[%clk 0:00:05.8]}
65. fxg5 {[%clk 0:00:05.4]} 65... Kxe3 {[%clk 0:00:05.7]} 66. g6 {[%clk
0:00:06.3]} 66... Qf3+ {[%clk 0:00:05.8]} 67. Kh4 {[%clk 0:00:06.5]} 67... Qh1+
{[%clk 0:00:04.4]} 68. Kg5 {[%clk 0:00:06.7]} 68... Qd5+ {[%clk 0:00:05]} 69.
Kh6 {[%clk 0:00:06.9]} 69... Qh1+ {[%clk 0:00:03.6]} 70. Kg7 {[%clk 0:00:06.9]}
70... Qb7+ {[%clk 0:00:04.1]} 71. Kh6 {[%clk 0:00:07.3]} 71... Qh1+ {[%clk
0:00:04.3]} 72. Kg7 {[%clk 0:00:07.3]} 72... Qb7+ {[%clk 0:00:04.6]} 73. Kh8
{[%clk 0:00:07.4]} 73... Kf4 {[%clk 0:00:03.6]} 74. g7 {[%clk 0:00:07.4]} 74...
Kg5 {[%clk 0:00:02.4]} 75. g8=Q+ {[%clk 0:00:07.3]} 75... Kf6 {[%clk 0:00:01.9]}
76. Qf8+ {[%clk 0:00:06.7]} 76... Kg6 {[%clk 0:00:02]} 77. Qf5+ {[%clk
0:00:06.9]} 77... Kh6 {[%clk 0:00:01.8]} 78. Qh5# {[%clk 0:00:07.8]} 1-0